fUSD/lending_fUSD_20241129
["ID","MTS","AMOUNT","RATE_DAILY","PERIOD"]
[343685312,1732849848248,-500.0,9.999e-05,2]
[343685313,1732849848262,-377.68,9.999e-05,2]
[343685314,1732849848272,-500.0,9.999e-05,2]
[343685315,1732849848282,-500.0,9.999e-05,2]
[343685316,1732849848292,-500.0,9.999e-05,2]
[343685317,1732849848302,-500.0,9.999e-05,2]
[343685318,1732849848311,-500.0,9.999e-05,2]
[343685319,1732849848321,-500.0,9.999e-05,2]
[343685320,1732849848330,-503.70551834,9.999e-05,2]
[343685321,1732849848340,-500.0,9.999e-05,2]
[343685322,1732849848349,-500.0,9.999e-05,2]
[343685323,1732849848359,-500.0,9.999e-05,2]
[343685324,1732849848368,-176.73,9.999e-05,2]
[343685325,1732849848378,-500.0,9.999e-05,2]
[343685326,1732849848387,-500.0,9.999e-05,2]
[343685327,1732849848397,-500.0,9.999e-05,2]
[343685328,1732849848407,-500.0,9.999e-05,2]
[343685329,1732849848417,-495.06509186,9.999e-05,2]
[343685330,1732849848426,-500.0,9.999e-05,2]
[343685331,1732849848435,-500.0,9.999e-05,2]
[343685332,1732849848445,-507.96770042,9.999e-05,2]
[343685333,1732849848455,-500.0,9.999e-05,2]
[343685334,1732849848464,-500.0,9.999e-05,2]
[343685335,1732849848473,-500.0,9.999e-05,2]
[343685336,1732849848483,-500.0,9.999e-05,2]
[343685337,1732849848493,-500.0,9.999e-05,2]
[343685338,1732849848503,-500.0,9.999e-05,2]
[343685339,1732849848514,-500.0,9.999e-05,2]
[343685340,1732849848524,-500.0,9.999e-05,2]
[343685341,1732849848534,-500.0,9.999e-05,2]
[343685342,1732849848544,-500.0,9.999e-05,2]
[343685343,1732849848553,-500.0,9.999e-05,2]
[343685344,1732849848563,-500.0,9.999e-05,2]
[343685345,1732849848572,-500.0,9.999e-05,2]
[343685346,1732849848582,-500.0,9.999e-05,2]
[343685347,1732849848591,-500.0,9.999e-05,2]
[343685348,1732849848601,-500.0,9.999e-05,2]
[343685349,1732849848611,-500.0,9.999e-05,2]
[343685350,1732849848620,-354.85,9.999e-05,2]
[343685351,1732849848630,-500.0,9.999e-05,2]
[343685352,1732849848640,-298.85653232,9.999e-05,2]
[343685353,1732849848650,-500.0,9.999e-05,2]
[343685354,1732849848660,-500.0,9.999e-05,2]
[343685355,1732849848669,-500.0,9.999e-05,2]
[343685356,1732849848678,-500.0,9.999e-05,2]
[343685357,1732849848688,-328.27,9.999e-05,2]
[343685358,1732849848697,-500.0,9.999e-05,2]
[343685359,1732849848706,-500.0,9.999e-05,2]
[343685360,1732849848716,-500.0,9.999e-05,2]
[343685361,1732849848726,-500.0,9.999e-05,2]
[343685362,1732849848735,-500.0,9.999e-05,2]
[343685363,1732849848745,-469.10724871,9.999e-05,2]
[343685364,1732849848754,-500.0,9.999e-05,2]
[343685365,1732849848765,-500.0,9.999e-05,2]
[343685366,1732849848774,-500.0,9.999e-05,2]
[343685367,1732849848784,-500.0,9.999e-05,2]
[343685368,1732849848793,-500.0,9.999e-05,2]
[343685369,1732849848803,-500.0,9.999e-05,2]
[343685370,1732849848813,-500.0,9.999e-05,2]
[343685371,1732849848823,-214.75139567,9.999e-05,2]
[343685372,1732849848832,-500.0,9.999e-05,2]
[343685373,1732849848842,-500.0,9.999e-05,2]
[343685374,1732849848851,-500.0,9.999e-05,2]
[343685375,1732849848860,-220.4,9.999e-05,2]
[343685376,1732849848869,-553.17697869,9.999e-05,2]
[343685377,1732849848879,-500.0,9.999e-05,2]
[343685378,1732849848888,-297.53,9.999e-05,2]
[343685379,1732849848897,-500.0,9.999e-05,2]
[343685380,1732849848907,-500.0,9.999e-05,2]
[343685381,1732849848916,-500.0,9.999e-05,2]
[343685382,1732849848925,-542.82714999,9.999e-05,2]
[343685383,1732849848935,-500.0,9.999e-05,2]
[343685384,1732849848944,-500.0,9.999e-05,2]
[343685385,1732849848953,-296.44,9.999e-05,2]
[343685386,1732849848963,-500.0,9.999e-05,2]
[343685387,1732849848971,-500.0,9.999e-05,2]
[343685388,1732849848981,-500.0,9.999e-05,2]
[343685389,1732849848991,-500.0,9.999e-05,2]
[343685390,1732849849000,-500.0,9.999e-05,2]
[343685391,1732849849010,-500.0,9.999e-05,2]
[343685392,1732849849019,-500.0,9.999e-05,2]
[343685393,1732849849029,-500.0,9.999e-05,2]
[343685394,1732849849039,-500.0,9.999e-05,2]
[343685395,1732849849048,-500.0,9.999e-05,2]
[343685396,1732849849058,-500.0,9.999e-05,2]
[343685397,1732849849068,-500.0,9.999e-05,2]
[343685398,1732849849077,-383.95,9.999e-05,2]
[343685399,1732849849086,-500.0,9.999e-05,2]
[343685400,1732849849096,-500.0,9.999e-05,2]
[343685401,1732849849105,-378.95,9.999e-05,2]
[343685402,1732849849114,-500.0,9.999e-05,2]
[343685403,1732849849124,-500.0,9.999e-05,2]
[343685404,1732849849134,-500.0,9.999e-05,2]
[343685405,1732849849143,-510.48,9.999e-05,2]
[343685406,1732849849152,-500.0,9.999e-05,2]
[343685407,1732849849162,-500.0,9.999e-05,2]
[343685408,1732849849174,-500.0,9.999e-05,2]
[343685409,1732849849184,-500.0,9.999e-05,2]
[343685410,1732849849193,-500.0,9.999e-05,2]
[343685411,1732849849203,-500.0,9.999e-05,2]
[343685412,1732849849213,-500.0,9.999e-05,2]
[343685413,1732849849223,-500.0,9.999e-05,2]
[343685414,1732849849232,-500.0,9.999e-05,2]
[343685415,1732849849241,-500.0,9.999e-05,2]
[343685416,1732849849252,-500.0,9.999e-05,2]
[343685417,1732849849264,-417.88,9.999e-05,2]
[343685418,1732849849273,-500.0,9.999e-05,2]
[343685419,1732849849283,-500.0,9.999e-05,2]
[343685420,1732849849293,-500.0,9.999e-05,2]
[343685421,1732849849303,-536.53530901,9.999e-05,2]
[343685422,1732849849313,-500.0,9.999e-05,2]
[343685423,1732849849322,-219.41593842,9.999e-05,2]
[343685424,1732849849332,-500.0,9.999e-05,2]
[343685425,1732849849342,-500.0,9.999e-05,2]
[343685426,1732849849352,-231.96,9.999e-05,2]
[343685427,1732849849361,-500.0,9.999e-05,2]
[343685428,1732849849371,-301.05795875,9.999e-05,2]
[343685429,1732849849380,-505.01786787,9.999e-05,2]
[343685430,1732849849390,-638.08791273,9.999e-05,2]
[343685431,1732849849400,-500.0,9.999e-05,2]
[343685432,1732849849410,-202.98911437,9.999e-05,2]
[343685433,1732849849419,-1345.57,9.999e-05,2]
[343685434,1732849849429,-1345.57,9.999e-05,2]
[343685435,1732849849439,-1345.57,9.999e-05,2]
[343685436,1732849849449,-500.0,9.999e-05,2]
[343685437,1732849849459,-1345.57,9.999e-05,2]
[343685438,1732849849469,-500.0,9.999e-05,2]
[343685439,1732849849479,-1345.57,9.999e-05,2]
[343685440,1732849849488,-1345.57,9.999e-05,2]
[343685441,1732849849498,-1345.57,9.999e-05,2]
[343685442,1732849849507,-1345.57,9.999e-05,2]
[343685443,1732849849519,-1345.57,9.999e-05,2]
[343685444,1732849849530,-1345.57,9.999e-05,2]
[343685445,1732849849539,-1345.57,9.999e-05,2]
[343685446,1732849849549,-1345.57,9.999e-05,2]
[343685447,1732849849558,-500.0,9.999e-05,2]
[343685448,1732849849568,-1345.57,9.999e-05,2]
[343685449,1732849849578,-1345.57,9.999e-05,2]
[343685450,1732849849588,-1345.57,9.999e-05,2]
[343685451,1732849849598,-1345.57,9.999e-05,2]
[343685452,1732849849608,-500.0,9.999e-05,2]
[343685453,1732849849617,-522.1764835,9.999e-05,2]
[343685454,1732849849627,-1345.57,9.999e-05,2]
[343685455,1732849849637,-1345.57,9.999e-05,2]
[343685456,1732849849646,-1345.57,9.999e-05,2]
[343685457,1732849849656,-1345.57,9.999e-05,2]
[343685458,1732849849666,-1345.57,9.999e-05,2]
[343685459,1732849849676,-1345.57,9.999e-05,2]
[343685460,1732849849685,-500.0,9.999e-05,2]
[343685461,1732849849695,-1345.57399061,9.999e-05,2]
[343685462,1732849849705,-500.0,9.999e-05,2]
[343685463,1732849849714,-500.0,9.999e-05,2]
[343685464,1732849849724,-500.0,9.999e-05,2]
[343685465,1732849849733,-500.0,9.999e-05,2]
[343685466,1732849849743,-500.0,9.999e-05,2]
[343685467,1732849849752,-500.0,9.999e-05,2]
[343685468,1732849849764,-500.0,9.999e-05,2]
[343685469,1732849849774,-500.0,9.999e-05,2]
[343685470,1732849849784,-500.0,9.999e-05,2]
[343685471,1732849849793,-500.0,9.999e-05,2]
[343685472,1732849849803,-500.0,9.999e-05,2]
[343685473,1732849849813,-500.0,9.999e-05,2]
[343685474,1732849849823,-500.0,9.999e-05,2]
[343685475,1732849849833,-500.0,9.999e-05,2]
[343685476,1732849849843,-500.0,9.999e-05,2]
[343685477,1732849849853,-500.0,9.999e-05,2]
[343685478,1732849849863,-500.0,9.999e-05,2]
[343685479,1732849849872,-500.0,9.999e-05,2]
[343685480,1732849849883,-500.0,9.999e-05,2]
[343685481,1732849849894,-500.0,9.999e-05,2]
[343685482,1732849849904,-500.0,9.999e-05,2]
[343685483,1732849849914,-500.0,9.999e-05,2]
[343685484,1732849849925,-500.0,9.999e-05,2]
[343685485,1732849849935,-613.09,9.999e-05,2]
[343685486,1732849849946,-500.0,9.999e-05,2]
[343685487,1732849849956,-500.0,9.999e-05,2]
[343685488,1732849849965,-241.29,9.999e-05,2]
[343685489,1732849849975,-500.0,9.999e-05,2]
[343685490,1732849849986,-500.0,9.999e-05,2]
[343685491,1732849849995,-500.0,9.999e-05,2]
[343685492,1732849850005,-500.0,9.999e-05,2]
[343685493,1732849850016,-500.0,9.999e-05,2]
[343685494,1732849850025,-500.0,9.999e-05,2]
[343685495,1732849850034,-500.0,9.999e-05,2]
[343685496,1732849850045,-500.0,9.999e-05,2]
[343685497,1732849850055,-500.0,9.999e-05,2]
[343685498,1732849850064,-500.0,9.999e-05,2]
[343685499,1732849850074,-500.0,9.999e-05,2]
[343685500,1732849850083,-500.0,9.999e-05,2]
[343685501,1732849850093,-500.0,9.999e-05,2]
[343685502,1732849850102,-500.0,9.999e-05,2]
[343685503,1732849850111,-500.0,9.999e-05,2]
[343685504,1732849850121,-500.0,9.999e-05,2]
[343685505,1732849850132,-500.0,9.999e-05,2]
[343685506,1732849850142,-338.2,9.999e-05,2]
[343685507,1732849850152,-500.0,9.999e-05,2]
[343685508,1732849850162,-500.0,9.999e-05,2]
[343685509,1732849850176,-383.83,9.999e-05,2]
[343685510,1732849850186,-500.0,9.999e-05,2]
[343685511,1732849850195,-500.0,9.999e-05,2]
[343685512,1732849850204,-500.0,9.999e-05,2]
[343685513,1732849850216,-471.60608964,9.999e-05,2]
[343685514,1732849850225,-500.0,9.999e-05,2]
[343685515,1732849850235,-500.0,9.999e-05,2]
[343685516,1732849850245,-515.0606799,9.999e-05,2]
[343685517,1732849850254,-500.0,9.999e-05,2]
[343685518,1732849850267,-500.0,9.999e-05,2]
[343685519,1732849850277,-638.14,9.999e-05,2]
[343685520,1732849850287,-500.0,9.999e-05,2]
[343685521,1732849850296,-500.86175057,9.999e-05,2]
[343685522,1732849850305,-500.0,9.999e-05,2]
[343685523,1732849850315,-500.0,9.999e-05,2]
[343685524,1732849850324,-500.0,9.999e-05,2]
[343685525,1732849850333,-612.37162238,9.999e-05,2]
[343685526,1732849850343,-500.0,9.999e-05,2]
[343685527,1732849850352,-500.0,9.999e-05,2]
[343685528,1732849850362,-500.0,9.999e-05,2]
[343685529,1732849850371,-500.0,9.999e-05,2]
[343685530,1732849850381,-507.71726374,9.999e-05,2]
[343685531,1732849850391,-500.0,9.999e-05,2]
[343685532,1732849850401,-500.0,9.999e-05,2]
[343685533,1732849850410,-500.0,9.999e-05,2]
[343685534,1732849850420,-500.0,9.999e-05,2]
[343685535,1732849850430,-373.93,9.999e-05,2]
[343685536,1732849850440,-500.0,9.999e-05,2]
[343685537,1732849850450,-500.0,9.999e-05,2]
[343685538,1732849850459,-500.0,9.999e-05,2]
[343685539,1732849850469,-500.0,9.999e-05,2]
[343685540,1732849850479,-500.0,9.999e-05,2]
[343685541,1732849850489,-390.46204049,9.999e-05,2]
[343685542,1732849850498,-500.0,9.999e-05,2]
[343685543,1732849850507,-500.0,9.999e-05,2]
[343685544,1732849850519,-363.76,9.999e-05,2]
[343685545,1732849850529,-500.0,9.999e-05,2]
[343685546,1732849850539,-500.0,9.999e-05,2]
[343685547,1732849850549,-500.0,9.999e-05,2]
[343685548,1732849850558,-500.0,9.999e-05,2]
[343685549,1732849850568,-500.0,9.999e-05,2]
[343685550,1732849850578,-500.0,9.999e-05,2]
[343685551,1732849850588,-500.0,9.999e-05,2]
[343685552,1732849850598,-500.0,9.999e-05,2]
[343685553,1732849850608,-500.0,9.999e-05,2]
[343685554,1732849850617,-500.0,9.999e-05,2]
[343685555,1732849850627,-500.0,9.999e-05,2]
[343685556,1732849850638,-472.00451703,9.999e-05,2]
[343685557,1732849850648,-1343.14,9.999e-05,2]
[343685558,1732849850657,-1343.14,9.999e-05,2]
[343685559,1732849850667,-1343.14,9.999e-05,2]
[343685560,1732849850677,-1343.14,9.999e-05,2]
[343685561,1732849850687,-500.0,9.999e-05,2]
[343685562,1732849850697,-1343.14,9.999e-05,2]
[343685563,1732849850707,-178.3497134,9.999e-05,2]
[343685564,1732849850717,-1343.14,9.999e-05,2]
[343685565,1732849850727,-1343.14,9.999e-05,2]
[343685566,1732849850736,-500.0,9.999e-05,2]
[343685567,1732849850746,-1343.14,9.999e-05,2]
[343685568,1732849850756,-500.0,9.999e-05,2]
[343685569,1732849850769,-1343.14,9.999e-05,2]
[343685570,1732849850779,-500.0,9.999e-05,2]
[343685571,1732849850790,-1343.14,9.999e-05,2]
[343685572,1732849850800,-1343.14,9.999e-05,2]
[343685573,1732849850811,-500.0,9.999e-05,2]
[343685574,1732849850820,-500.0,9.999e-05,2]
[343685575,1732849850830,-500.0,9.999e-05,2]
[343685576,1732849850840,-500.0,9.999e-05,2]
[343685577,1732849850850,-500.0,9.999e-05,2]
[343685578,1732849850859,-549.15,9.999e-05,2]
[343685579,1732849850869,-500.0,9.999e-05,2]
[343685580,1732849850879,-549.15,9.999e-05,2]
[343685581,1732849850889,-1343.14,9.999e-05,2]
[343685582,1732849850899,-549.15,9.999e-05,2]
[343685583,1732849850909,-1343.14,9.999e-05,2]
[343685584,1732849850919,-250.39661944,9.999e-05,2]
[343685585,1732849850929,-500.0,9.999e-05,2]
[343685586,1732849850939,-1343.14,9.999e-05,2]
[343685587,1732849850949,-549.15,9.999e-05,2]
[343685588,1732849850959,-500.0,9.999e-05,2]
[343685589,1732849850968,-549.15,9.999e-05,2]
[343685590,1732849850977,-545.58665175,9.999e-05,2]
[343685591,1732849850987,-549.15,9.999e-05,2]
[343685592,1732849850998,-549.15,9.999e-05,2]
[343685593,1732849851007,-549.15,9.999e-05,2]
[343685594,1732849851018,-549.15,9.999e-05,2]
[343685595,1732849851027,-549.15,9.999e-05,2]
[343685596,1732849851037,-549.15,9.999e-05,2]
[343685597,1732849851046,-168.13596298,9.999e-05,2]
[343685598,1732849851056,-549.15,9.999e-05,2]
[343685599,1732849851065,-549.15,9.999e-05,2]
[343685600,1732849851075,-549.15,9.999e-05,2]
[343685601,1732849851084,-1343.14,9.999e-05,2]
[343685602,1732849851094,-549.15,9.999e-05,2]
[343685603,1732849851103,-1343.14,9.999e-05,2]
[343685604,1732849851113,-549.15,9.999e-05,2]
[343685605,1732849851122,-1343.14,9.999e-05,2]
[343685606,1732849851131,-549.15,9.999e-05,2]
[343685607,1732849851142,-500.0,9.999e-05,2]
[343685608,1732849851152,-1343.14,9.999e-05,2]
[343685609,1732849851163,-549.15,9.999e-05,2]
[343685610,1732849851175,-500.0,9.999e-05,2]
[343685611,1732849851186,-1343.14,9.999e-05,2]
[343685612,1732849851196,-549.15,9.999e-05,2]
[343685613,1732849851206,-500.0,9.999e-05,2]
[343685614,1732849851357,-1343.14,9.999e-05,2]
[343685615,1732849851369,-549.15,9.999e-05,2]
[343685616,1732849851379,-1343.14,9.999e-05,2]
[343685617,1732849851389,-500.0,9.999e-05,2]
[343685618,1732849851399,-549.15,9.999e-05,2]
[343685619,1732849851409,-324.45,9.999e-05,2]
[343685620,1732849851419,-1343.14,9.999e-05,2]
[343685621,1732849851428,-549.15,9.999e-05,2]
[343685622,1732849851438,-1343.3779547,9.999e-05,2]
[343685623,1732849851448,-549.2,9.999e-05,2]
[343685624,1732849851458,-500.0,9.999e-05,2]
[343685625,1732849851467,-1157.86,9.999e-05,2]
[343685626,1732849851477,-1157.86,9.999e-05,2]
[343685627,1732849851486,-1157.86,9.999e-05,2]
[343685628,1732849851495,-1157.86,9.999e-05,2]
[343685629,1732849851504,-1157.86,9.999e-05,2]
[343685630,1732849851514,-1157.86,9.999e-05,2]
[343685631,1732849851523,-500.0,9.999e-05,2]
[343685632,1732849851532,-1157.86,9.999e-05,2]
[343685633,1732849851542,-1157.86,9.999e-05,2]
[343685634,1732849851551,-1157.86,9.999e-05,2]
[343685635,1732849851560,-500.0,9.999e-05,2]
[343685636,1732849851570,-1157.86,9.999e-05,2]
[343685637,1732849851579,-1157.86,9.999e-05,2]
[343685638,1732849851588,-515.10389947,9.999e-05,2]
[343685639,1732849851597,-1157.86,9.999e-05,2]
[343685640,1732849851608,-1157.86,9.999e-05,2]
[343685641,1732849851617,-1157.86,9.999e-05,2]
[343685642,1732849851627,-1157.86,9.999e-05,2]
[343685643,1732849851636,-1157.86,9.999e-05,2]
[343685644,1732849851647,-1157.86,9.999e-05,2]
[343685645,1732849851658,-1157.86,9.999e-05,2]
[343685646,1732849851669,-1157.86,9.999e-05,2]
[343685647,1732849851679,-1157.86,9.999e-05,2]
[343685648,1732849851691,-1157.86,9.999e-05,2]
[343685649,1732849851701,-1157.86,9.999e-05,2]
[343685650,1732849851712,-1158.01463732,9.999e-05,2]
[343685651,1732849851721,-504.77916448,9.999e-05,2]
[343685652,1732849851731,-500.0,9.999e-05,2]
[343685653,1732849851741,-500.0,9.999e-05,2]
[343685654,1732849851751,-196.21982878,0.0001,2]
[343685655,1732849851760,-717238.60238553,0.0001,2]
[343685656,1732849851769,-9689.56186568,0.0001,2]
[343685657,1732849851779,-9689.5618656,0.0001,2]
[343685658,1732849851789,-9689.5618656,0.0001,2]
[343685659,1732849851798,-9689.5618656,0.0001,2]
[343685660,1732849851808,-9689.5618656,0.0001,2]
[343685661,1732849851818,-9689.5618656,0.0001,2]
[343685662,1732849851829,-9689.5618656,0.0001,2]
[343685663,1732849851839,-9689.5618656,0.0001,2]
[343685664,1732849851848,-9689.5618656,0.0001,2]
[343685665,1732849851857,-34321.0,0.0001,2]
[343685666,1732849851866,-2301125.38198909,0.0001,2]
[343685667,1732849852168,-2941.40606896,0.0001,2]
[343685668,1732849853077,-268.28055403,8.758e-05,2]
[343685669,1732849853089,-4381.4195044,8.758e-05,2]
[343685670,1732849853101,-2362.8242459,8.758e-05,2]
[343685671,1732849853314,-491.628,8.758e-05,2]
[343685672,1732849853392,-14423.86769567,8.758e-05,2]
[343685673,1732849853402,-1096.0,9.328e-05,2]
[343685674,1732849853412,-583.8,9.989e-05,2]
[343685675,1732849853423,-583.8,9.989e-05,2]
[343685676,1732849853433,-345.06007814,9.989e-05,2]
[343685677,1732849853442,-500.68536592,9.989e-05,2]
[343685678,1732849853452,-90.4510676,9.997e-05,2]
[343685679,1732849853902,-347.50990424,9.989e-05,2]
[343685680,1732849854114,-757.69009576,9.989e-05,2]
[343685681,1732849854124,-1105.2,9.989e-05,2]
[343685682,1732849854134,-494.08,9.997e-05,2]
[343685683,1732849854144,-493.3489324,9.997e-05,2]
[343685684,1732849854154,-704.39575362,9.997e-05,2]
[343685685,1732849854166,-400.80424638,9.997e-05,2]
[343685686,1732849854179,-426.67044811,9.998e-05,2]
[343685687,1732849854191,-73.32955189,9.998e-05,2]
[343685688,1732849854201,-500.0,9.998e-05,2]
[343685689,1732849854210,-583.8,9.998e-05,2]
[343685690,1732849854222,-583.8,9.998e-05,2]
[343685691,1732849854231,-583.8,9.998e-05,2]
[343685692,1732849854241,-500.0,9.998e-05,2]
[343685693,1732849854251,-519.51248217,9.998e-05,2]
[343685694,1732849854260,-618.66818436,9.998e-05,2]
[343685695,1732849854271,-500.0,9.998e-05,2]
[343685696,1732849854281,-500.0,9.998e-05,2]
[343685697,1732849854291,-501.50857981,9.998e-05,2]
[343685698,1732849854300,-500.0,9.998e-05,2]
[343685699,1732849854309,-500.0,9.998e-05,2]
[343685700,1732849854318,-1105.2,9.998e-05,2]
[343685701,1732849854327,-1105.2,9.998e-05,2]
[343685702,1732849854336,-1105.2,9.998e-05,2]
[343685703,1732849854347,-507.55915964,9.999e-05,2]
[343685704,1732849854358,-537.34,9.999e-05,2]
[343685705,1732849854367,-500.0,9.999e-05,2]
[343685706,1732849854376,-500.0,9.999e-05,2]
[343685707,1732849854385,-583.8,9.999e-05,2]
[343685708,1732849854394,-500.0,9.999e-05,2]
[343685709,1732849854404,-583.8,9.999e-05,2]
[343685710,1732849854414,-500.0,9.999e-05,2]
[343685711,1732849854424,-583.8,9.999e-05,2]
[343685712,1732849854434,-552.45,9.999e-05,2]
[343685713,1732849854444,-583.8,9.999e-05,2]
[343685714,1732849854453,-583.8,9.999e-05,2]
[343685715,1732849854463,-583.8,9.999e-05,2]
[343685716,1732849854473,-500.0,9.999e-05,2]
[343685717,1732849854483,-583.8,9.999e-05,2]
[343685718,1732849854493,-500.0,9.999e-05,2]
[343685719,1732849854503,-583.8,9.999e-05,2]
[343685720,1732849854513,-500.0,9.999e-05,2]
[343685721,1732849854523,-583.8,9.999e-05,2]
[343685722,1732849854533,-500.0,9.999e-05,2]
[343685723,1732849854543,-583.8,9.999e-05,2]
[343685724,1732849854553,-500.0,9.999e-05,2]
[343685725,1732849854565,-583.8,9.999e-05,2]
[343685726,1732849854574,-422.06,9.999e-05,2]
[343685727,1732849854584,-583.8,9.999e-05,2]
[343685728,1732849854594,-583.8,9.999e-05,2]
[343685729,1732849854604,-583.8,9.999e-05,2]
[343685730,1732849854614,-583.8,9.999e-05,2]
[343685731,1732849854624,-583.8,9.999e-05,2]
[343685732,1732849854633,-583.8,9.999e-05,2]
[343685733,1732849854643,-583.83297822,9.999e-05,2]
[343685734,1732849854652,-321.19572135,9.999e-05,2]
[343685735,1732849854661,-500.0,9.999e-05,2]
[343685736,1732849854671,-597.59,9.999e-05,2]
[343685737,1732849854680,-500.0,9.999e-05,2]
[343685738,1732849854689,-369.29319256,9.999e-05,2]
[343685739,1732849854740,-500.0,9.998e-05,2]
[343685740,1732849854750,-130.70680744,9.999e-05,2]
[343685741,1732849854759,-500.0,9.999e-05,2]
[343685742,1732849854770,-362.51637003,9.999e-05,2]
[343685743,1732849854780,-887.97722253,9.999e-05,2]
[343685744,1732849854791,-217.22277747,9.999e-05,2]
[343685745,1732849854801,-1105.2,9.999e-05,2]
[343685746,1732849854811,-1105.2,9.999e-05,2]
[343685747,1732849854821,-1105.2,9.999e-05,2]
[343685748,1732849854831,-1105.2,9.999e-05,2]
[343685749,1732849854842,-1105.2,9.999e-05,2]
[343685750,1732849854852,-1105.2,9.999e-05,2]
[343685751,1732849854862,-1105.2,9.999e-05,2]
[343685752,1732849854871,-1105.2,9.999e-05,2]
[343685753,1732849854881,-6726.79172681,0.0001,2]
[343685754,1732849854891,-25490.36549572,0.0001,2]
[343685755,1732849854930,-478.69127602,9.999e-05,2]
[343685756,1732849854942,-351.51134788,9.999e-05,2]
[343685757,1732849854955,-274.9973761,9.999e-05,2]
[343685758,1732849854964,-500.0,9.999e-05,2]
[343685759,1732849854974,-6302.27118333,0.0001,2]
[343685760,1732849854985,-1795.35,0.0001,2]
[343685761,1732849854996,-643.85,0.0001,2]
[343685762,1732849857708,-260.5501795,0.0001,2]
[343685763,1732850198516,150.0,0.0001,5]
[343685764,1732850278091,300.0,0.00027,120]
[343685768,1732850373875,700.0,0.00027,90]
[343685769,1732850424315,700.0,0.00027,90]
[343685770,1732850542342,769.0,0.00027,90]
[343685772,1732850725447,5243.08,0.00027,120]
[343685773,1732850727282,3775.63615256,0.00027,120]
[343685777,1732850814798,13032.74165751,5e-05,17]
[343685786,1732850873008,5394.92875444,0.00022,120]
[343685848,1732851032409,-1134.45,8.219e-05,2]
[343685849,1732851032421,-10503.03,8.771e-05,2]
[343685850,1732851032431,-250.0,8.841e-05,2]
[343685851,1732851032440,-250.0,8.842e-05,2]
[343685852,1732851032450,-250.0,8.845e-05,2]
[343685853,1732851032459,-600.51,8.846e-05,2]
[343685854,1732851032468,-1000.0,8.855e-05,2]
[343685855,1732851032479,-170.65,8.893e-05,2]
[343685856,1732851032489,-165.43,8.901e-05,2]
[343685857,1732851032499,-4493.71341685,9e-05,2]
[343685858,1732851032515,-178.22,9.203e-05,2]
[343685859,1732851032525,-1080.24,9.589e-05,2]
[343685860,1732851032534,-400.0,9.589e-05,2]
[343685861,1732851032543,-150.0,9.617e-05,2]
[343685862,1732851032552,-2000.0,9.618e-05,2]
[343685863,1732851032563,-630.0,9.618e-05,2]
[343685864,1732851032574,-150.0,9.618e-05,2]
[343685865,1732851032584,-562.0,9.618e-05,2]
[343685866,1732851032594,-1933.0,9.618e-05,2]
[343685867,1732851032603,-3757.0,9.618e-05,2]
[343685868,1732851032612,-816.0,9.618e-05,2]
[343685869,1732851032621,-1264.0,9.618e-05,2]
[343685870,1732851032631,-1405.38643279,9.618e-05,2]
[343685871,1732851032643,-2118.61356721,9.618e-05,2]
[343685872,1732851032652,-534.0,9.618e-05,2]
[343685873,1732851032662,-979.0,9.618e-05,2]
[343685874,1732851032671,-557.276,9.618e-05,2]
[343685875,1732851032681,-1260.0,9.618e-05,2]
[343685876,1732851032690,-150.0,9.618e-05,2]
[343685877,1732851032699,-633.0,9.618e-05,2]
[343685878,1732851032709,-566.0,9.618e-05,2]
[343685879,1732851032718,-1080.24,9.726e-05,2]
[343685880,1732851032728,-150.0,9.756e-05,2]
[343685881,1732851032737,-226.5391448,9.8e-05,2]
[343685882,1732851032746,-1000.0,9.8e-05,2]
[343685883,1732851032756,-500.0,9.808e-05,2]
[343685884,1732851032766,-3200.2313102,9.81e-05,2]
[343685885,1732851032788,-495.99435667,9.81e-05,2]
[343685886,1732851032799,-1555.66300808,9.81e-05,2]
[343685887,1732851032819,-1409.25229469,9.81e-05,2]